lending/lending_fUSD_20251124
["ID","MTS","AMOUNT","RATE_DAILY","PERIOD"]
[394848967,1764016754808,-151.0,0.00024658,7]
[394848968,1764016754833,-151.0,0.00024658,7]
[394848969,1764016754858,-151.0,0.00024658,7]
[394848970,1764016754882,-153.763947,0.00024658,7]
[394848971,1764016754906,-152.947496,0.00024658,7]
[394848972,1764016754931,-159.683086,0.00024658,7]
[394848973,1764016754966,-151.0,0.00024658,7]
[394848974,1764016754990,-151.0,0.00024658,7]
[394848975,1764016755014,-153.699742,0.00024658,7]
[394848976,1764016755038,-151.0,0.00024658,7]
[394848977,1764016755063,-151.0,0.00024658,7]
[394848978,1764016755087,-151.0,0.00024658,7]
[394848979,1764016755112,-151.0,0.00024658,7]
[394848980,1764016755136,-151.0,0.00024658,7]
[394848981,1764016755161,-179.697587,0.00024658,7]
[394848982,1764016755184,-179.697587,0.00024658,7]
[394848983,1764016755208,-179.697587,0.00024658,7]
[394848984,1764016755231,-179.697587,0.00024658,7]
[394848985,1764016755254,-151.0,0.00024658,7]
[394848986,1764016755278,-152.664258,0.00024658,7]
[394848987,1764016755305,-170.735023,0.00024658,7]
[394848988,1764016755330,-227.386626,0.00024658,7]
[394848989,1764016755356,-157.74505,0.00024658,7]
[394848990,1764016755382,-151.0,0.00024658,7]
[394848991,1764016755406,-151.0,0.00024658,7]
[394848992,1764016755429,-151.0,0.00024658,7]
[394848993,1764016755453,-151.0,0.00024658,7]
[394848994,1764016755478,-151.0,0.00024658,7]
[394848995,1764016755503,-151.0,0.00024658,7]
[394848996,1764016755527,-151.0,0.00024658,7]
[394848997,1764016755551,-151.0,0.00024658,7]
[394848998,1764016755574,-246.19281,0.00024658,7]
[394848999,1764016755599,-151.0,0.00024658,7]
[394849000,1764016755624,-151.0,0.00024658,7]
[394849001,1764016755647,-151.0,0.00024658,7]
[394849002,1764016755671,-151.0,0.00024658,7]
[394849003,1764016755696,-151.0,0.00024658,7]
[394849004,1764016755719,-151.0,0.00024658,7]
[394849005,1764016755742,-151.0,0.00024658,7]
[394849006,1764016755770,-151.0,0.00024658,7]
[394849007,1764016755794,-151.0,0.00024658,7]
[394849008,1764016755819,-151.0,0.00024658,7]
[394849009,1764016755844,-151.0,0.00024658,7]
[394849010,1764016755870,-151.0,0.00024658,7]
[394849011,1764016755894,-151.0,0.00024658,7]
[394849012,1764016755917,-151.0,0.00024658,7]
[394849013,1764016755942,-160.845747,0.00024658,7]
[394849014,1764016755967,-515.842712,0.00024658,7]
[394849015,1764016755993,-515.842712,0.00024658,7]
[394849016,1764016756018,-515.842712,0.00024658,7]
[394849017,1764016756043,-214.454454,0.00024658,7]
[394849018,1764016756068,-515.842712,0.00024658,7]
[394849019,1764016756094,-214.454454,0.00024658,7]
[394849020,1764016756120,-214.454454,0.00024658,7]
[394849021,1764016756146,-214.454454,0.00024658,7]
[394849022,1764016756170,-368.001069,0.00024658,7]
[394849023,1764016756194,-368.001069,0.00024658,7]
[394849024,1764016756219,-368.001069,0.00024658,7]
[394849025,1764016756242,-368.001069,0.00024658,7]
[394849026,1764016756267,-259.692237,0.00024658,7]
[394849027,1764016756291,-151.0,0.00024658,7]
[394849028,1764016756319,-151.0,0.00024658,7]
[394849029,1764016756342,-151.0,0.00024658,7]
[394849030,1764016756367,-499.7485,0.00024658,7]
[394849031,1764016756391,-151.0,0.00024658,7]
[394849032,1764016756414,-169.689645,0.00024658,7]
[394849033,1764016756439,-499.7485,0.00024658,7]
[394849034,1764016756462,-151.0,0.00024658,7]
[394849035,1764016756489,-499.7485,0.00024658,7]
[394849036,1764016756514,-151.0,0.00024658,7]
[394849037,1764016756538,-499.7485,0.00024658,7]
[394849038,1764016756565,-151.0,0.00024658,7]
[394849039,1764016756589,-151.0,0.00024658,7]
[394849040,1764016756613,-151.0,0.00024658,7]
[394849041,1764016756635,-153.648457,0.00024658,7]
[394849042,1764016756659,-151.0,0.00024658,7]
[394849043,1764016756682,-151.0,0.00024658,7]
[394849044,1764016756706,-270.567206,0.00024658,7]
[394849045,1764016756730,-151.430441,0.00024658,7]
[394849046,1764016756754,-158.241911,0.00024658,7]
[394849047,1764016756778,-270.567206,0.00024658,7]
[394849048,1764016756802,-151.0,0.00024658,7]
[394849049,1764016756825,-151.0,0.00024658,7]
[394849050,1764016756849,-199.423888,0.00024658,7]
[394849051,1764016756874,-270.567206,0.00024658,7]
[394849052,1764016756898,-151.0,0.00024658,7]
[394849053,1764016756921,-151.0,0.00024658,7]
[394849054,1764016757078,-151.0,0.00024658,7]
[394849055,1764016757103,-199.423888,0.00024658,7]
[394849056,1764016757128,-270.567206,0.00024658,7]
[394849057,1764016757152,-151.0,0.00024658,7]
[394849058,1764016757175,-151.0,0.00024658,7]
[394849059,1764016757200,-199.423888,0.00024658,7]
[394849060,1764016757224,-199.423888,0.00024658,7]
[394849061,1764016757248,-151.0,0.00024658,7]
[394849062,1764016757272,-151.0,0.00024658,7]
[394849063,1764016757296,-154.037028,0.00024658,7]
[394849064,1764016757323,-156.005857,0.00024658,7]
[394849065,1764016757348,-161.908077,0.00024658,7]
[394849066,1764016757373,-151.0,0.00024658,7]
[394849067,1764016757399,-151.0,0.00024658,7]
[394849068,1764016757422,-151.0,0.00024658,7]
[394849069,1764016757446,-151.0,0.00024658,7]
[394849070,1764016757471,-151.0,0.00024658,7]
[394849071,1764016757499,-151.0,0.00024658,7]
[394849072,1764016757522,-151.0,0.00024658,7]
[394849073,1764016757547,-151.0,0.00024658,7]
[394849074,1764016757572,-272.154874,0.00024658,7]
[394849075,1764016757597,-156.463306,0.00024658,7]
[394849076,1764016757622,-272.154874,0.00024658,7]
[394849077,1764016757648,-272.154874,0.00024658,7]
[394849078,1764016757674,-151.0,0.00024658,7]
[394849079,1764016757698,-151.0,0.00024658,7]
[394849080,1764016757726,-151.0,0.00024658,7]
[394849081,1764016757751,-272.154874,0.00024658,7]
[394849082,1764016757774,-151.0,0.00024658,7]
[394849083,1764016757798,-151.0,0.00024658,7]
[394849084,1764016757822,-424.504917,0.00024658,7]
[394849085,1764016757845,-151.0,0.00024658,7]
[394849086,1764016757871,-424.504917,0.00024658,7]
[394849087,1764016757896,-151.0,0.00024658,7]
[394849088,1764016757921,-151.0,0.00024658,7]
[394849089,1764016757947,-424.504917,0.00024658,7]
[394849090,1764016757978,-160.243049,0.00024658,7]
[394849091,1764016758007,-151.0,0.00024658,7]
[394849092,1764016758037,-151.0,0.00024658,7]
[394849093,1764016758069,-424.504917,0.00024658,7]
[394849094,1764016758101,-151.0,0.00024658,7]
[394849095,1764016758135,-151.0,0.00024658,7]
[394849096,1764016758166,-151.0,0.00024658,7]
[394849097,1764016758193,-217.393624,0.00024658,7]
[394849098,1764016758222,-217.393624,0.00024658,7]
[394849099,1764016758249,-217.393624,0.00024658,7]
[394849100,1764016758275,-217.393624,0.00024658,7]
[394849101,1764016758300,-151.0,0.00024658,7]
[394849102,1764016758330,-151.0,0.00024658,7]
[394849103,1764016758360,-151.0,0.00024658,7]
[394849104,1764016758386,-151.0,0.00024658,7]
[394849105,1764016758412,-151.0,0.00024658,7]
[394849106,1764016758437,-151.0,0.00024658,7]
[394849107,1764016758464,-151.0,0.00024658,7]
[394849108,1764016758490,-151.0,0.00024658,7]
[394849109,1764016758516,-151.0,0.00024658,7]
[394849110,1764016758541,-151.378803,0.00024658,7]
[394849111,1764016758566,-151.378803,0.00024658,7]
[394849112,1764016758590,-151.378803,0.00024658,7]
[394849113,1764016758615,-151.378803,0.00024658,7]
[394849114,1764016758638,-151.0,0.00024658,7]
[394849115,1764016758661,-152.766717,0.00024658,7]
[394849116,1764016758687,-151.0,0.00024658,7]
[394849117,1764016758713,-151.0,0.00024658,7]
[394849118,1764016758738,-151.0,0.00024658,7]
[394849119,1764016758765,-151.0,0.00024658,7]
[394849120,1764016758791,-151.0,0.00024658,7]
[394849121,1764016758817,-151.0,0.00024658,7]
[394849122,1764016758844,-157.475107,0.00024658,7]
[394849123,1764016758871,-151.0,0.00024658,7]
[394849124,1764016758898,-151.0,0.00024658,7]
[394849125,1764016758923,-151.0,0.00024658,7]
[394849126,1764016758948,-151.0,0.00024658,7]
[394849127,1764016758975,-151.0,0.00024658,7]
[394849128,1764016759000,-151.0,0.00024658,7]
[394849129,1764016759024,-156.85861,0.00024658,7]
[394849130,1764016759048,-151.0,0.00024658,7]
[394849131,1764016759072,-151.0,0.00024658,7]
[394849132,1764016759096,-152.948041,0.00024658,7]
[394849133,1764016759123,-248.652686,0.00024658,7]
[394849134,1764016759146,-151.0,0.00024658,7]
[394849135,1764016759170,-151.0,0.00024658,7]
[394849136,1764016759194,-153.881885,0.00024658,7]
[394849137,1764016759219,-151.0,0.00024658,7]
[394849138,1764016759244,-151.0,0.00024658,7]
[394849139,1764016759272,-151.0,0.00024658,7]
[394849140,1764016759305,-211.035491,0.00024658,7]
[394849141,1764016759335,-152.213322,0.00024658,7]
[394849142,1764016759363,-211.035491,0.00024658,7]
[394849143,1764016759390,-426.151633,0.00024658,7]
[394849144,1764016759414,-211.035491,0.00024658,7]
[394849145,1764016759440,-426.151633,0.00024658,7]
[394849146,1764016759465,-211.035491,0.00024658,7]
[394849147,1764016759492,-426.151633,0.00024658,7]
[394849148,1764016759518,-151.0,0.00024658,7]
[394849149,1764016759546,-426.151633,0.00024658,7]
[394849150,1764016759713,-198.055669,0.00024658,7]
[394849151,1764016759740,-1052.371986,0.00024658,7]
[394849152,1764016759765,-276.322266,0.00024658,7]
[394849153,1764016759790,-198.055669,0.00024658,7]
[394849154,1764016759816,-1052.371986,0.00024658,7]
[394849155,1764016759841,-198.055669,0.00024658,7]
[394849156,1764016759870,-1052.371986,0.00024658,7]
[394849157,1764016759895,-285.365221,0.00024658,7]
[394849158,1764016759922,-1052.371986,0.00024658,7]
[394849159,1764016759948,-198.055669,0.00024658,7]
[394849160,1764016759980,-285.365221,0.00024658,7]
[394849161,1764016760012,-151.0,0.00024658,7]
[394849162,1764016760038,-285.365221,0.00024658,7]
[394849163,1764016760063,-151.0,0.00024658,7]
[394849164,1764016760088,-285.365221,0.00024658,7]
[394849165,1764016760113,-159.962245,0.00024658,7]
[394849166,1764016760139,-151.0,0.00024658,7]
[394849167,1764016760164,-151.0,0.00024658,7]
[394849168,1764016760188,-385.623434,0.00024658,7]
[394849169,1764016760213,-151.0,0.00024658,7]
[394849170,1764016760237,-385.623434,0.00024658,7]
[394849171,1764016760263,-151.0,0.00024658,7]
[394849172,1764016760289,-385.623434,0.00024658,7]
[394849173,1764016760319,-151.0,0.00024658,7]
[394849174,1764016760345,-385.623434,0.00024658,7]
[394849175,1764016760370,-151.0,0.00024658,7]
[394849176,1764016760396,-500.0,0.00024673,2]
[394849177,1764016760421,-500.0,0.00024673,2]
[394849178,1764016760445,-500.0,0.00024673,2]
[394849179,1764016760470,-500.0,0.00024673,2]
[394849180,1764016760494,-151.0,0.000248,7]
[394849181,1764016760519,-151.0,0.000248,7]
[394849182,1764016760544,-151.0,0.000248,7]
[394849183,1764016760569,-151.0,0.000248,7]
[394849184,1764016760594,-151.0,0.000248,7]
[394849185,1764016760624,-151.0,0.000248,7]
[394849186,1764016760649,-151.0,0.000248,7]
[394849187,1764016760674,-152.67406,0.000248,7]
[394849188,1764016760701,-151.0,0.000248,7]
[394849189,1764016760727,-151.0,0.000248,7]
[394849190,1764016760752,-151.0,0.000248,7]
[394849191,1764016760778,-189.403672,0.000248,7]
[394849192,1764016760803,-154.808306,0.000248,7]
[394849193,1764016760829,-157.865048,0.000248,7]
[394849194,1764016760856,-159.626007,0.000248,7]
[394849195,1764016760880,-151.0,0.000248,7]
[394849196,1764016760905,-151.0,0.000248,7]
[394849197,1764016760930,-158.356723,0.000248,7]
[394849198,1764016760954,-178.674323,0.000248,7]
[394849199,1764016760979,-515.842712,0.000248,7]
[394849200,1764016761004,-515.842712,0.000248,7]
[394849201,1764016761028,-515.842712,0.000248,7]
[394849202,1764016761052,-214.454454,0.000248,7]
[394849203,1764016761077,-515.842712,0.000248,7]
[394849204,1764016761102,-214.454454,0.000248,7]
[394849205,1764016761127,-214.454454,0.000248,7]
[394849206,1764016761152,-214.454454,0.000248,7]
[394849207,1764016761178,-368.001069,0.000248,7]
[394849208,1764016761205,-368.001069,0.000248,7]
[394849209,1764016761230,-368.001069,0.000248,7]
[394849210,1764016761254,-368.001069,0.000248,7]
[394849211,1764016761277,-151.0,0.000248,7]
[394849212,1764016761301,-151.0,0.000248,7]
[394849213,1764016761330,-151.0,0.000248,7]
[394849214,1764016761356,-151.0,0.000248,7]
[394849215,1764016761379,-499.7485,0.000248,7]
[394849216,1764016761404,-151.0,0.000248,7]
[394849217,1764016761427,-499.7485,0.000248,7]
[394849218,1764016761450,-151.0,0.000248,7]
[394849219,1764016761476,-499.7485,0.000248,7]
[394849220,1764016761500,-151.0,0.000248,7]
[394849221,1764016761523,-151.0,0.000248,7]
[394849222,1764016761547,-499.7485,0.000248,7]
[394849223,1764016761570,-151.0,0.000248,7]
[394849224,1764016761594,-183.958218,0.000248,7]
[394849225,1764016761618,-167.627545,0.000248,7]
[394849226,1764016761642,-161.731428,0.000248,7]
[394849227,1764016761666,-151.0,0.000248,7]
[394849228,1764016761691,-270.567206,0.000248,7]
[394849229,1764016761715,-270.567206,0.000248,7]
[394849230,1764016761738,-151.0,0.000248,7]
[394849231,1764016761762,-154.926952,0.000248,7]
[394849232,1764016761787,-199.423888,0.000248,7]
[394849233,1764016761811,-270.567206,0.000248,7]
[394849234,1764016761835,-151.0,0.000248,7]
[394849235,1764016761860,-151.0,0.000248,7]
[394849236,1764016761892,-151.0,0.000248,7]
[394849237,1764016761926,-199.423888,0.000248,7]
[394849238,1764016761950,-159.711177,0.000248,7]
[394849239,1764016761975,-270.567206,0.000248,7]
[394849240,1764016762002,-262.922461,0.000248,7]
[394849241,1764016762028,-199.423888,0.000248,7]
[394849242,1764016762052,-151.0,0.000248,7]
[394849243,1764016762076,-155.308666,0.000248,7]
[394849244,1764016762100,-199.423888,0.000248,7]
[394849245,1764016762279,-151.0,0.000248,7]
[394849246,1764016762306,-162.587111,0.000248,7]
[394849247,1764016762330,-151.0,0.000248,7]
[394849248,1764016762355,-151.0,0.000248,7]
[394849249,1764016762379,-151.0,0.000248,7]
[394849250,1764016762405,-151.0,0.000248,7]
[394849251,1764016762428,-160.880663,0.000248,7]
[394849252,1764016762451,-151.0,0.000248,7]
[394849253,1764016762475,-151.0,0.000248,7]
[394849254,1764016762500,-151.0,0.000248,7]
[394849255,1764016762527,-151.0,0.000248,7]
[394849256,1764016762551,-277.387635,0.000248,7]
[394849257,1764016762575,-272.154874,0.000248,7]
[394849258,1764016762598,-272.154874,0.000248,7]
[394849259,1764016762623,-272.154874,0.000248,7]
[394849260,1764016762648,-151.0,0.000248,7]
[394849261,1764016762672,-259.841727,0.000248,7]
[394849262,1764016762696,-151.0,0.000248,7]
[394849263,1764016762720,-272.154874,0.000248,7]
[394849264,1764016762743,-151.0,0.000248,7]
[394849265,1764016762767,-151.0,0.000248,7]
[394849266,1764016762791,-151.0,0.000248,7]
[394849267,1764016762817,-424.504917,0.000248,7]
[394849268,1764016762843,-151.0,0.000248,7]
[394849269,1764016762871,-424.504917,0.000248,7]
[394849270,1764016762898,-151.0,0.000248,7]
[394849271,1764016762924,-151.0,0.000248,7]
[394849272,1764016762951,-424.504917,0.000248,7]
[394849273,1764016762978,-151.0,0.000248,7]
[394849274,1764016763003,-151.0,0.000248,7]
[394849275,1764016763027,-154.100054,0.000248,7]
[394849276,1764016763052,-424.504917,0.000248,7]
[394849277,1764016763078,-151.0,0.000248,7]
[394849278,1764016763104,-151.0,0.000248,7]
[394849279,1764016763135,-151.0,0.000248,7]
[394849280,1764016763161,-151.0,0.000248,7]
[394849281,1764016763189,-151.0,0.000248,7]
[394849282,1764016763217,-217.393624,0.000248,7]
[394849283,1764016763243,-217.393624,0.000248,7]
[394849284,1764016763271,-217.393624,0.000248,7]
[394849285,1764016763297,-217.393624,0.000248,7]
[394849286,1764016763327,-151.0,0.000248,7]
[394849287,1764016763353,-151.0,0.000248,7]
[394849288,1764016763382,-151.0,0.000248,7]
[394849289,1764016763408,-151.0,0.000248,7]
[394849290,1764016763432,-151.0,0.000248,7]
[394849291,1764016763455,-151.0,0.000248,7]
[394849292,1764016763478,-198.529857,0.000248,7]
[394849293,1764016763503,-151.0,0.000248,7]
[394849294,1764016763526,-163.619159,0.000248,7]
[394849295,1764016763549,-151.378803,0.000248,7]
[394849296,1764016763572,-151.378803,0.000248,7]
[394849297,1764016763595,-151.378803,0.000248,7]
[394849298,1764016763619,-151.378803,0.000248,7]
[394849299,1764016763642,-151.0,0.000248,7]
[394849300,1764016763665,-151.0,0.000248,7]
[394849301,1764016763689,-151.0,0.000248,7]
[394849302,1764016763713,-161.992568,0.000248,7]
[394849303,1764016763737,-151.0,0.000248,7]
[394849304,1764016763762,-151.0,0.000248,7]
[394849305,1764016763785,-292.322312,0.000248,7]
[394849306,1764016763809,-151.0,0.000248,7]
[394849307,1764016763835,-151.0,0.000248,7]
[394849308,1764016763861,-151.0,0.000248,7]
[394849309,1764016763886,-151.0,0.000248,7]
[394849310,1764016763910,-158.034121,0.000248,7]
[394849311,1764016763934,-151.0,0.000248,7]
[394849312,1764016763959,-1092.431675,0.000248,7]
[394849313,1764016763983,-151.0,0.000248,7]
[394849314,1764016764010,-1092.431675,0.000248,7]
[394849315,1764016764036,-1092.431675,0.000248,7]
[394849316,1764016764060,-151.0,0.000248,7]
[394849317,1764016764085,-1092.431675,0.000248,7]
[394849318,1764016764108,-151.0,0.000248,7]
[394849319,1764016764135,-263825.831169,0.000248,3]
[394849320,1764016764160,-151.0,0.000248,7]
[394849321,1764016764185,-151.0,0.000248,7]
[394849322,1764016764211,-151.0,0.000248,7]
[394849323,1764016764236,-211.035491,0.000248,7]
[394849324,1764016764260,-211.035491,0.000248,7]
[394849325,1764016764286,-426.151633,0.000248,7]
[394849326,1764016764313,-211.035491,0.000248,7]
[394849327,1764016764339,-426.151633,0.000248,7]
[394849328,1764016764364,-211.035491,0.000248,7]
[394849329,1764016764390,-426.151633,0.000248,7]
[394849330,1764016764415,-426.151633,0.000248,7]
[394849331,1764016764439,-198.055669,0.000248,7]
[394849332,1764016764464,-1052.371986,0.000248,7]
[394849333,1764016764489,-198.055669,0.000248,7]
[394849334,1764016764514,-1052.371986,0.000248,7]
[394849335,1764016764538,-198.055669,0.000248,7]
[394849336,1764016764563,-1052.371986,0.000248,7]
[394849337,1764016764588,-285.365221,0.000248,7]
[394849338,1764016764613,-1052.371986,0.000248,7]
[394849339,1764016764638,-198.055669,0.000248,7]
[394849340,1764016764802,-285.365221,0.000248,7]
[394849341,1764016764827,-151.0,0.000248,7]
[394849342,1764016764852,-285.365221,0.000248,7]
[394849343,1764016764878,-151.0,0.000248,7]
[394849344,1764016764903,-285.365221,0.000248,7]
[394849345,1764016764927,-151.0,0.000248,7]
[394849346,1764016764952,-151.0,0.000248,7]
[394849347,1764016764978,-385.623434,0.000248,7]
[394849348,1764016765003,-151.0,0.000248,7]
[394849349,1764016765027,-151.0,0.000248,7]
[394849350,1764016765052,-385.623434,0.000248,7]
[394849351,1764016765078,-151.0,0.000248,7]
[394849352,1764016765104,-385.623434,0.000248,7]
[394849353,1764016765129,-151.0,0.000248,7]
[394849354,1764016765153,-385.623434,0.000248,7]
[394849355,1764016765178,-151.0,0.000248,7]
[394849356,1764016765201,-153.473753,0.000248,7]
[394849357,1764016765226,-5808.01090989,0.00024805,2]
[394849358,1764016765249,-500.0,0.0002486,2]
[394849359,1764016765273,-500.0,0.0002486,2]
[394849360,1764016765301,-500.0,0.0002486,2]
[394849361,1764016765328,-491.23630963,0.0002486,2]
[394849362,1764016765352,-500.57621506,0.0002486,2]
[394849363,1764016765377,-500.0,0.0002486,2]
[394849364,1764016765404,-568.00209004,0.0002486,2]
[394849365,1764016765428,-491.44400652,0.0002486,2]
[394849366,1764016765452,-305.87253345,0.0002486,2]
[394849367,1764016765475,-500.0,0.0002486,2]
[394849368,1764016765499,-501.54413169,0.0002486,2]
[394849369,1764016765524,-166.25018838,0.0002486,2]
[394849370,1764016765548,-500.4051858,0.0002486,2]
[394849371,1764016765572,-500.0,0.0002486,2]
[394849372,1764016765596,-327.89727296,0.0002486,2]
[394849373,1764016765620,-500.0,0.0002486,2]
[394849374,1764016765644,-500.0,0.0002486,2]
[394849375,1764016765667,-500.0,0.0002486,2]
[394849376,1764016765691,-151.0,0.000249,7]
[394849377,1764016765716,-151.0,0.000249,7]
[394849378,1764016765742,-151.0,0.000249,7]
[394849379,1764016765767,-151.466997,0.000249,7]
[394849380,1764016765791,-151.0,0.000249,7]
[394849381,1764016765814,-151.0,0.000249,7]
[394849382,1764016765839,-151.0,0.000249,7]
[394849383,1764016765863,-151.0,0.000249,7]
[394849384,1764016765888,-151.0,0.000249,7]
[394849385,1764016765914,-151.0,0.000249,7]
[394849386,1764016765938,-269.0,0.000249,5]
[394849387,1764016765962,-151.0,0.000249,7]
[394849388,1764016765987,-152.339965,0.000249,7]
[394849389,1764016766011,-161.866969,0.000249,7]
[394849390,1764016766037,-151.0,0.000249,7]
[394849391,1764016766063,-151.0,0.000249,7]
[394849392,1764016766089,-151.0,0.000249,7]
[394849393,1764016766116,-18353.21283264,0.00024927,2]
[394849394,1764016766152,-152.85067113,0.00025102,2]
[394849395,1764016766184,-500.0,0.00025194,120]
[394849396,1764016766217,-700.0,0.00025221,2]
[394849397,1764016766251,-500.0,0.00025221,2]
[394849398,1764016766279,-500.0,0.00025408,2]
[394849399,1764016766315,-500.0,0.00025408,2]
[394849400,1764016766349,-1000.0,0.00025408,2]
[394849401,1764016766384,-1000.0,0.0002543,2]
[394849402,1764016766417,-168.38,0.0002584,2]
[394849403,1764016766449,-579.09758949,0.00025956,2]
[394849404,1764016766480,-1000.0,0.00026,2]
[394849405,1764016766515,-158.19,0.00026116,120]
[394849406,1764016766547,-263.09,0.00026139,2]
[394849407,1764016766575,-158.19,0.00026145,120]
[394849408,1764016766608,-158.19,0.00026175,120]
[394849409,1764016766635,-158.19,0.00026207,120]
[394849410,1764016766668,-158.19,0.00026241,120]
[394849411,1764016766696,-158.19,0.00026277,120]
[394849412,1764016766725,-158.19,0.00026314,120]
[394849413,1764016766754,-158.19,0.00026355,120]
[394849414,1764016766784,-1076.05,0.00026357,120]
[394849415,1764016766814,-158.19,0.00026398,120]
[394849416,1764016766842,-158.19,0.00026444,120]
[394849417,1764016766872,-210.47,0.00026488,2]
[394849418,1764016766902,-158.19,0.00026494,120]
[394849419,1764016766931,-158.19,0.00026548,120]
[394849420,1764016766960,-158.19,0.00026607,120]
[394849421,1764016766989,-609.0,0.00026654,2]
[394849422,1764016767019,-3532.298,0.00026654,2]
[394849423,1764016767048,-158.19,0.00026673,120]
[394849424,1764016767079,-197.63,0.00026676,2]
[394849425,1764016767109,-158.19,0.00026746,120]
[394849426,1764016767138,-1562.349,0.00026784,2]
[394849427,1764016767168,-1601.0,0.00026784,2]
[394849428,1764016767202,-822.0,0.00026784,2]
[394849429,1764016767232,-659.0,0.00026784,2]
[394849430,1764016767261,-1256.0,0.00026784,2]
[394849431,1764016767290,-6494.0,0.00026784,2]
[394849432,1764016767320,-606.201,0.00026784,2]
[394849433,1764016767349,-908.0,0.00026784,2]
[394849434,1764016767380,-1192.0,0.00026784,2]
[394849435,1764016767410,-158.19,0.0002683,120]
[394849436,1764016767439,-158.19,0.00026926,120]
[394849437,1764016767469,-167.0,0.00027,7]
[394849438,1764016767499,-801.26249405,0.00027012,2]
[394849439,1764016767529,-158.19,0.0002704,120]
[394849440,1764016767561,-5808.01090989,0.00027057,2]
[394849441,1764016767592,-158.19,0.00027179,120]
[394849442,1764016767623,-18353.21283264,0.00027209,2]
[394849443,1764016767653,-158.19,0.00027359,120]
[394849444,1764016767692,-500.0,0.00027397,5]
[394849445,1764016767733,-151.0,0.00027397,7]
[394849446,1764016768039,-300.0,0.00027397,2]
[394849447,1764016768572,216.86764147,0.000179,2]
[394849448,1764016768620,151.0,0.00024658,7]
[394849449,1764016768650,159.69707637,0.00018652,2]
[394849450,1764016768857,3924.21058312,0.0001969,3]
[394849451,1764016768904,300.0,0.0001969,2]
[394849452,1764016768934,300.0,0.00018276,2]
[394849453,1764016768995,300.0,0.00021114,2]
[394849454,1764016769028,300.0,0.00021114,2]
[394849455,1764016769068,300.0,0.00021114,2]
[394849456,1764016769100,250.0,0.0001969,2]
[394849457,1764016769134,250.0,0.00018276,2]
[394849458,1764016769164,250.0,0.00021114,2]
[394849459,1764016769204,2500.0,0.0001969,2]
[394849460,1764016769236,2500.0,0.00021114,2]
[394849461,1764016769268,2500.0,0.00021114,2]
[394849462,1764016769301,2500.0,0.00021114,2]
[394849463,1764016769333,2202.20714511,0.00021114,2]
[394849464,1764016769370,200.0,0.0001969,2]
[394849465,1764016769400,200.0,0.00021114,2]
[394849466,1764016769427,200.0,0.00021114,2]